bitfinex/quotes_SOLUSD_20250616
["timestamp","ask_amount","ask_price","bid_price","bid_amount"]
[1750086638747,8.57540953,156.59,156.56,6.38732754]
[1750086639835,4.74723494,156.6,156.56,6.38732754]
[1750086640135,8.57540953,156.59,156.56,6.38732754]
[1750086640313,12.23836256,156.64,156.58,8.57540953]
[1750086640514,20.81377209,156.64,156.6,8.57540953]
[1750086640714,25.56158545,156.64,156.6,8.57540953]
[1750086640932,25.56158545,156.64,156.61,6.38528829]
[1750086641322,16.98617592,156.64,156.61,6.38528829]
[1750086641844,20.81377209,156.64,156.61,6.38528829]
[1750086642339,25.56158545,156.64,156.61,6.38528829]
[1750086642709,12.23836256,156.64,156.61,14.96069782]
[1750086642913,12.23836256,156.64,156.63,27.22505839]
[1750086643116,4.75391573,156.69,156.64,18.64964886]
[1750086643315,13.32932526,156.68,156.61,28.12850902]
[1750086643608,13.32932526,156.67,156.62,27.36721996]
[1750086643813,8.57540953,156.67,156.62,27.36721996]
[1750086644021,8.57540953,156.66,156.62,27.36721996]
[1750086644242,13.32932526,156.67,156.62,27.36721996]
[1750086644413,8.57540953,156.67,156.62,27.36721996]
[1750086644613,4.75391573,156.68,156.63,8.57540953]
[1750086644825,8.57540953,156.68,156.63,8.57540953]
[1750086645020,8.57540953,156.67,156.64,6.38406537]
[1750086645325,4.75391573,156.69,156.64,6.38406537]
[1750086645524,8.57540953,156.67,156.64,6.38406537]
[1750086646331,4.75391573,156.69,156.64,6.38406537]
[1750086646536,8.57540953,156.68,156.64,8.57540953]
[1750086646916,13.32932526,156.68,156.64,8.57540953]
[1750086647222,8.57540953,156.68,156.63,14.95988249]
[1750086647715,4.75391573,156.69,156.63,6.38447296]
[1750086647922,8.57540953,156.66,156.63,6.38447296]
[1750086648331,8.57540953,156.64,156.59,5.78]
[1750086648647,8.57540953,156.61,156.6,6.38566687]
[1750086648824,8.57540953,156.61,156.59,12.16593727]
[1750086649024,8.57540953,156.6,156.59,12.16593727]
[1750086649217,8.57540953,156.6,156.59,5.78]
[1750086649417,8.57540953,156.6,156.58,6.3863609]
[1750086649630,4.74515823,156.63,156.58,6.3863609]
[1750086649851,8.57540953,156.6,156.58,6.3863609]
[1750086650426,8.57540953,156.6,156.57,6.38691958]
[1750086651536,8.57540953,156.58,156.57,6.38691958]
[1750086652448,8.57540953,156.58,156.55,22.3562699]
[1750086652847,8.57540953,156.57,156.55,6.38773554]
[1750086653028,8.57540953,156.56,156.55,6.38773554]
[1750086653446,8.57540953,156.57,156.55,6.38773554]
[1750086654360,8.57540953,156.57,156.53,6.38855171]
[1750086654657,8.57540953,156.56,156.53,6.38855171]
[1750086654855,11.13012339,156.61,156.53,30.93534052]
[1750086654856,8.57540953,156.58,156.53,30.93534052]
[1750086656022,8.57540953,156.57,156.53,6.38855171]
[1750086656227,8.57540953,156.55,156.53,6.38855171]
[1750086656456,8.57540953,156.54,156.52,12.16886301]
[1750086656645,8.57540953,156.53,156.52,12.16886301]
[1750086656834,8.57540953,156.53,156.52,6.38886301]
[1750086657234,8.57540953,156.53,156.48,49.59213404]
[1750086657433,8.57540953,156.52,156.48,22.36707565]
[1750086657836,8.57540953,156.53,156.48,30.94248518]
[1750086659127,4.74110455,156.56,156.49,27.36721996]
[1750086659328,37.58270011,156.57,156.51,8.57540953]
[1750086659534,8.57540953,156.56,156.51,8.57540953]
[1750086659859,8.57540953,156.55,156.5,8.57540953]
[1750086660065,8.57540953,156.55,156.51,8.57540953]
[1750086660438,8.57540953,156.54,156.49,27.36721996]
[1750086661168,8.57540953,156.54,156.51,6.38936809]
[1750086661535,8.57540953,156.55,156.51,6.38936809]
[1750086662841,8.57540953,156.52,156.47,43.51074973]
[1750086663041,8.57540953,156.5,156.46,25.0410588]
[1750086663236,32.78857372,156.53,156.46,6.39140994]
[1750086663237,8.57540953,156.48,156.46,6.39140994]
[1750086663455,8.57540953,156.47,156.44,18.64964886]
[1750086663656,8.57540953,156.46,156.42,14.96845389]
[1750086663941,8.57540953,156.47,156.42,30.9510648]
[1750086664562,8.57540953,156.46,156.42,30.9510648]
[1750086664978,8.57540953,156.46,156.42,25.04269322]
[1750086665457,8.57540953,156.45,156.42,6.39304436]
[1750086665780,62.12383368,156.48,156.41,5.78]
[1750086665781,0.28432314,156.47,156.41,12.17331491]
[1750086665938,8.57540953,156.44,156.41,12.17331491]
[1750086666867,12.8811986,156.44,156.41,12.17331491]
[1750086668253,12.8811986,156.46,156.41,41.03814627]
[1750086668444,12.8811986,156.45,156.41,41.03814627]
[1750086668644,12.8811986,156.45,156.41,12.17331491]
[1750086668952,12.8811986,156.45,156.41,25.05451351]
[1750086669278,12.8811986,156.45,156.41,12.17331491]
[1750086669491,12.8811986,156.43,156.41,5.78]
[1750086669650,12.8811986,156.42,156.38,6.39467962]
[1750086670346,12.8811986,156.43,156.38,19.27587822]
[1750086670553,12.8811986,156.42,156.38,6.39467962]
[1750086670743,12.8811986,156.4,156.36,6.39549756]
[1750086670948,12.8811986,156.39,156.36,6.39549756]
[1750086671160,1.5141,156.51,156.4,18.64964886]
[1750086671364,12.8811986,156.5,156.45,12.8811986]
[1750086671569,12.90568992,156.52,156.47,31.95733217]
[1750086671750,6.379,156.6,156.52,18.64964886]
[1750086671960,1.5141,156.63,156.55,0.14216157]
[1750086671961,14.51406775,156.57,156.55,0.14216157]
[1750086672166,14.51406775,156.57,156.56,37.918175]
[1750086672468,11.18270011,156.57,156.56,37.918175]
[1750086672887,52.46,156.65,156.56,37.918175]
[1750086672888,12.8811986,156.66,156.57,18.64964886]
[1750086673050,12.8811986,156.66,156.61,12.8811986]
[1750086673250,3.32981986,156.65,156.61,12.8811986]
[1750086673574,3.32981986,156.65,156.62,12.8811986]
[1750086673747,3.32981986,156.65,156.64,12.8811986]
[1750086674081,12.28347828,156.68,156.64,31.53084746]
[1750086674379,12.28347828,156.68,156.67,12.8811986]
[1750086675851,12.28347828,156.68,156.67,31.53084746]
[1750086676657,12.28347828,156.68,156.67,18.64964886]
[1750086676858,12.28347828,156.68,156.67,31.53084746]
[1750086677164,3.32831303,156.71,156.67,31.53084746]
[1750086677362,3.32831303,156.71,156.7,12.8811986]
[1750086677677,3.32831303,156.71,156.7,19.26281953]
[1750086678223,13.16552174,156.76,156.7,35.21687185]
[1750086678478,3.32773203,156.74,156.72,12.8811986]
[1750086678678,3.32773203,156.74,156.71,12.8811986]
[1750086679785,3.32773203,156.74,156.72,6.38080653]
[1750086680190,3.32773203,156.74,156.73,12.8811986]
[1750086681195,3.32773203,156.74,156.73,31.53084746]
[1750086681361,12.01839016,156.79,156.74,18.64964886]
[1750086681566,3.32638399,156.79,156.78,12.8811986]
[1750086681968,3.32638399,156.79,156.78,19.25956318]
[1750086682168,8.1612,156.89,156.78,19.25956318]
[1750086682407,8.1612,156.89,156.79,12.8811986]
[1750086682592,3.32552821,156.83,156.79,12.8811986]
[1750086683373,3.32552821,156.83,156.79,31.53084746]
[1750086683588,39.3211986,156.87,156.79,31.67300903]
[1750086683873,3.32515846,156.85,156.79,38.0509668]
[1750086684890,19.5260986,156.89,156.79,43.8109668]
[1750086685094,26.0,156.88,156.79,43.8109668]
[1750086685397,3.32497784,156.87,156.79,43.8109668]
[1750086686386,3.32497784,156.87,156.79,37.90880523]
[1750086686591,12.8811986,156.86,156.79,37.90880523]
[1750086686999,3.32497784,156.87,156.79,37.90880523]
[1750086687195,16.20617644,156.87,156.79,38.0509668]
[1750086687398,3.32497784,156.87,156.79,38.0509668]
[1750086687582,16.20617644,156.87,156.79,38.0509668]
[1750086688087,12.8811986,156.86,156.79,25.1697682]
[1750086688273,12.8811986,156.86,156.79,38.0509668]
[1750086690711,12.8811986,156.84,156.79,25.02760663]
[1750086690906,12.8811986,156.81,156.77,31.53084746]
[1750086691202,12.8811986,156.81,156.77,18.64964886]
[1750086692107,12.8811986,156.81,156.78,6.37836458]
[1750086692494,40.36588988,156.8,156.78,6.37836458]
[1750086692697,12.8811986,156.79,156.74,5.8]
[1750086692900,27.48469128,156.8,156.73,37.91124687]
[1750086693108,12.8811986,156.78,156.73,53.8622454]
[1750086693303,12.8811986,156.79,156.73,53.8622454]
[1750086693510,12.8811986,156.79,156.74,12.8811986]
[1750086693712,27.48469128,156.8,156.73,40.9810468]
[1750086693713,40.36588988,156.8,156.75,12.8811986]
[1750086694724,40.36588988,156.8,156.76,6.37917836]
[1750086695384,12.8811986,156.79,156.76,6.37917836]
[1750086695906,40.36588988,156.8,156.75,6.37949861]
[1750086696291,40.36588988,156.8,156.75,19.26069721]
[1750086696620,46.74350083,156.8,156.75,12.8811986]
[1750086696780,46.74350083,156.8,156.74,6.37989368]
[1750086696781,12.8811986,156.78,156.74,6.37989368]
[1750086697184,12.8811986,156.77,156.73,6.38036495]
[1750086697683,34.01989128,156.8,156.73,6.38036495]
[1750086697912,12.8811986,156.79,156.74,12.8811986]
[1750086698105,12.8811986,156.77,156.73,6.38036495]
[1750086698693,12.8811986,156.78,156.73,6.38036495]
[1750086699003,6.37819037,156.79,156.74,12.8811986]
[1750086699004,12.8811986,156.79,156.74,12.8811986]
[1750086699312,53.48469128,156.8,156.76,12.8811986]
[1750086699494,79.90469128,156.8,156.76,12.8811986]
[1750086699695,92.78588988,156.8,156.74,18.64964886]
[1750086699898,92.78588988,156.8,156.75,12.8811986]
[1750086700491,79.90469128,156.8,156.77,12.8811986]
[1750086700814,79.90469128,156.8,156.76,12.8811986]
[1750086701011,79.90469128,156.8,156.76,19.26026953]
[1750086701991,79.90469128,156.8,156.72,18.64964886]
[1750086701992,92.78588988,156.8,156.74,25.0296412]
[1750086702193,92.78588988,156.8,156.75,12.8811986]
[1750086702795,53.48469128,156.8,156.75,19.26052134]
[1750086703007,92.84588988,156.8,156.75,19.26052134]
[1750086703496,79.96469128,156.8,156.76,12.8811986]
[1750086704208,92.84588988,156.8,156.75,19.26052134]
[1750086704399,99.22344566,156.8,156.75,19.26052134]
[1750086704990,12.8811986,156.77,156.72,6.38080653]
[1750086705307,12.8811986,156.75,156.71,5.8]
[1750086705800,12.8811986,156.75,156.71,18.6811986]
[1750086706619,16.20899598,156.76,156.71,18.6811986]
[1750086706818,16.20899598,156.76,156.71,5.8]
[1750086707001,19.26100987,156.75,156.71,18.6811986]
[1750086707625,39.3611986,156.74,156.71,5.8]
[1750086707923,39.3611986,156.74,156.7,12.8811986]
[1750086708099,39.3611986,156.74,156.69,12.8811986]
[1750086708798,12.8811986,156.73,156.69,12.8811986]
[1750086709000,45.74136141,156.74,156.69,12.8811986]
[1750086709206,45.74136141,156.74,156.69,19.26312999]
[1750086709919,12.8811986,156.73,156.69,12.8811986]
[1750086710135,12.8811986,156.73,156.68,12.8811986]
[1750086710629,12.8811986,156.72,156.67,6.38259675]
[1750086710794,26.48,156.71,156.67,12.8811986]
[1750086710994,26.48,156.71,156.68,12.8811986]
[1750086711516,26.48,156.71,156.68,19.2634839]
[1750086711726,26.46,156.73,156.7,12.8811986]
[1750086712426,26.0,156.75,156.72,12.8811986]
[1750086712601,29.80779738,156.76,156.73,12.8811986]
[1750086712810,3.32779738,156.76,156.73,12.8811986]
[1750086713399,29.80779738,156.76,156.73,12.8811986]
[1750086713621,29.80779738,156.76,156.73,19.26148601]
[1750086713999,3.32779738,156.76,156.75,12.8811986]
[1750086715325,8.0667804,156.76,156.74,12.8811986]
[1750086715630,4.73898302,156.75,156.74,12.8811986]
[1750086716003,4.73898302,156.75,156.72,6.38080653]
[1750086716218,4.73898302,156.74,156.72,6.38080653]
[1750086716519,3.32779738,156.76,156.72,6.38080653]
[1750086716727,4.73873483,156.75,156.72,6.38080653]
[1750086717018,4.73873483,156.74,156.72,25.03045539]
[1750086717326,3.32779738,156.76,156.73,12.8811986]
[1750086717535,9.4737202,156.75,156.74,12.8811986]
[1750086718022,9.4737202,156.75,156.72,12.8811986]
[1750086718215,4.73896488,156.74,156.71,7.97137365]
[1750086718525,3.32779738,156.76,156.73,12.8811986]
[1750086718729,4.74006392,156.75,156.74,12.8811986]
[1750086719236,4.74340851,156.75,156.74,19.26119094]
[1750086720002,4.74340851,156.75,156.71,17.54333426]
[1750086720003,4.74340851,156.75,156.72,6.38080653]
[1750086720216,4.74340851,156.74,156.72,6.38080653]
[1750086720501,3.32779738,156.76,156.72,6.38080653]
[1750086720699,4.74305729,156.75,156.72,6.38080653]
[1750086720898,4.74305729,156.74,156.72,6.38080653]
[1750086721122,3.32779738,156.76,156.72,6.38080653]
[1750086721330,4.74314803,156.75,156.72,6.38080653]
[1750086721514,4.74314803,156.74,156.72,6.38080653]
[1750086721712,4.74249612,156.73,156.72,12.8811986]
[1750086722304,9.4869118,156.73,156.71,12.8811986]
[1750086722510,4.74249612,156.72,156.7,19.26254647]
[1750086722704,4.74249612,156.71,156.7,19.26254647]
[1750086723007,4.74249612,156.71,156.7,37.91219533]
[1750086723314,3.32779738,156.76,156.72,6.38080653]
[1750086723616,9.4906964,156.75,156.72,19.26200513]
[1750086723822,4.74420141,156.74,156.72,6.38080653]
[1750086724020,3.32779738,156.76,156.73,12.8811986]
[1750086724202,4.74594364,156.75,156.74,12.8811986]
[1750086725214,4.74710551,156.78,156.75,25.02923418]
[1750086725540,3.32653744,156.79,156.77,12.8811986]
[1750086725833,4.74478364,156.78,156.77,12.8811986]
[1750086726605,4.74478364,156.78,156.74,7.89898672]
[1750086726805,4.74692799,156.78,156.74,19.26108532]
[1750086727070,4.74660532,156.77,156.76,12.8811986]
[1750086727240,8.07346543,156.79,156.76,12.8811986]
[1750086727241,4.74660532,156.78,156.76,12.8811986]
[1750086727437,8.07346543,156.79,156.76,12.8811986]
[1750086727638,4.74600225,156.78,156.76,12.8811986]
[1750086727838,3.32653744,156.79,156.77,12.8811986]
[1750086728059,3.32653744,156.79,156.78,12.8811986]
[1750086728250,8.07228053,156.79,156.78,12.8811986]
[1750086729353,27.33154641,156.79,156.72,6.3806825]
[1750086729677,12.8811986,156.73,156.7,5.82]
[1750086729835,12.8811986,156.71,156.65,28.84030568]
[1750086730033,12.8811986,156.69,156.65,12.8811986]
[1750086730344,12.8811986,156.68,156.64,6.38406537]
[1750086730649,26.46,156.7,156.65,12.8811986]
[1750086730851,26.46,156.7,156.67,12.8811986]
[1750086731165,12.8811986,156.69,156.65,12.8811986]
[1750086731351,39.3411986,156.7,156.66,6.38325035]
[1750086731949,6.66488857,156.73,156.68,12.8811986]
[1750086731950,26.0,156.72,156.68,12.8811986]
[1750086732548,38.8811986,156.72,156.68,12.8811986]
[1750086732780,26.0,156.72,156.68,12.8811986]
[1750086732966,12.8811986,156.71,156.67,31.53084746]
[1750086733347,17.63693858,156.71,156.68,6.38243553]
[1750086733547,38.8811986,156.72,156.68,6.38243553]
[1750086733759,4.75572743,156.71,156.68,6.38243553]
[1750086734079,4.75467937,156.71,156.68,6.38243553]
[1750086734266,17.63587797,156.71,156.68,6.38243553]
[1750086734579,17.63548473,156.7,156.65,12.8811986]
[1750086734872,4.75377283,156.69,156.64,6.38406537]
[1750086735043,17.63497143,156.69,156.65,12.8811986]
[1750086735570,26.44,156.7,156.67,12.8811986]
[1750086735754,12.8811986,156.72,156.68,12.8811986]
[1750086735960,4.75309695,156.71,156.68,12.8811986]
[1750086736268,4.75223285,156.7,156.68,12.8811986]
[1750086736441,15.25731325,156.72,156.68,12.8811986]
[1750086736637,4.75492778,156.71,156.68,12.8811986]
[1750086736843,26.0,156.73,156.69,12.8811986]
[1750086737078,4.75489676,156.72,156.7,12.8811986]
[1750086737249,4.75489676,156.72,156.66,22.34137622]
[1750086737250,4.75489676,156.72,156.69,12.8811986]
[1750086737454,4.75489676,156.72,156.71,6.3812137]
[1750086737947,4.75489676,156.74,156.71,6.3812137]
[1750086738149,4.75489676,156.73,156.71,6.3812137]
[1750086738358,39.3411986,156.75,156.71,6.3812137]
[1750086738559,4.75397417,156.74,156.71,6.3812137]
[1750086738756,4.75397417,156.73,156.71,6.3812137]
[1750086738990,4.75397417,156.74,156.71,6.3812137]
[1750086739148,4.75402581,156.73,156.71,6.3812137]
[1750086739348,15.25860012,156.75,156.71,6.3812137]
[1750086739686,65.31429914,156.76,156.71,19.2624123]
[1750086739687,4.75682745,156.74,156.71,19.2624123]
[1750086739975,3.61086058,156.79,156.71,19.2624123]
[1750086739976,4.75804423,156.75,156.73,12.8811986]
[1750086740150,28.83909673,156.78,156.74,12.8811986]
[1750086740353,7.13727194,156.77,156.73,12.8811986]
[1750086740569,4.75817521,156.76,156.73,12.8811986]
[1750086740771,4.75817521,156.75,156.72,31.53084746]
[1750086740961,15.26029533,156.77,156.72,31.53084746]
[1750086741278,17.63956223,156.76,156.71,19.2624123]
[1750086741451,4.75836363,156.75,156.73,6.38039941]
[1750086741653,4.75933282,156.74,156.73,6.38039941]
[1750086741848,26.39398029,156.77,156.72,12.8811986]
[1750086742156,17.64194024,156.76,156.72,12.8811986]
[1750086742389,4.76074164,156.75,156.72,19.26199924]
[1750086742564,4.76074164,156.74,156.72,19.26199924]
[1750086742880,2.38032039,156.76,156.72,19.26199924]
[1750086743066,4.75997591,156.75,156.71,19.26227342]
[1750086743275,17.64117451,156.74,156.69,19.2628198]
[1750086743457,4.75997591,156.73,156.69,19.2628198]
[1750086743772,4.75997591,156.72,156.69,6.3816212]
[1750086743947,26.44,156.74,156.7,12.8811986]
[1750086744143,4.75954388,156.73,156.7,12.8811986]
[1750086744348,4.75954388,156.72,156.7,12.8811986]
[1750086744566,39.3211986,156.74,156.7,12.8811986]
[1750086744762,4.75957931,156.73,156.7,12.8811986]
[1750086744976,4.75957931,156.72,156.7,12.8811986]
[1750086745149,39.3211986,156.74,156.69,19.2628198]
[1750086745351,17.64037315,156.73,156.69,19.2628198]
[1750086745554,4.75917455,156.72,156.69,6.3816212]
[1750086745768,12.8811986,156.73,156.69,19.2628198]
[1750086745982,8.08694596,156.72,156.69,19.2628198]
[1750086746153,4.76056545,156.71,156.69,19.2628198]
[1750086746354,3.32820415,156.72,156.69,19.2628198]
[1750086746559,4.76088867,156.71,156.69,19.2628198]
[1750086746754,3.32820415,156.72,156.69,19.2628198]
[1750086747064,3.32820415,156.72,156.7,12.8811986]
[1750086747578,3.32820415,156.72,156.69,6.3816212]
[1750086747758,4.76232006,156.71,156.69,6.3816212]
[1750086747957,3.32820415,156.72,156.69,6.3816212]
[1750086748175,4.76217556,156.71,156.7,12.8811986]
[1750086748384,3.32820415,156.72,156.7,12.8811986]
[1750086748589,3.32820415,156.72,156.71,12.8811986]
[1750086748784,8.09077593,156.72,156.71,12.8811986]
[1750086748958,8.09077593,156.72,156.71,6.3812137]
[1750086749850,8.09077593,156.72,156.71,19.2624123]
[1750086750377,8.09077593,156.72,156.71,6.3812137]
[1750086750949,8.09392793,156.72,156.71,6.3812137]
[1750086751880,8.09392793,156.72,156.69,15.95502593]
[1750086752181,3.32820415,156.72,156.7,12.8811986]
[1750086752352,4.76524198,156.71,156.7,12.8811986]
[1750086752774,3.32820415,156.72,156.7,12.8811986]
[1750086753666,3.32820415,156.72,156.68,6.38243553]
[1750086753870,3.32820415,156.72,156.67,6.38277462]
[1750086753871,17.6471968,156.71,156.67,6.38277462]
[1750086754064,4.7659982,156.7,156.67,6.38277462]
[1750086754280,4.76509561,156.69,156.67,6.38277462]
[1750086754579,12.8811986,156.71,156.67,6.38277462]
[1750086754753,4.76530173,156.7,156.67,6.38277462]
[1750086754954,4.76503856,156.69,156.67,6.38277462]
[1750086755171,12.8811986,156.7,156.67,6.38277462]
[1750086755576,39.3011986,156.71,156.67,19.26397322]
[1750086755790,4.76377567,156.7,156.68,12.8811986]
[1750086755980,5.87583668,156.79,156.71,0.14216157]
[1750086756189,11.9060459,156.78,156.75,12.8811986]
[1750086756351,7.14782228,156.77,156.75,12.8811986]
[1750086756556,4.76521486,156.76,156.74,12.8811986]
[1750086756755,4.76521486,156.75,156.74,12.8811986]
[1750086756974,5.70982833,156.78,156.74,12.8811986]
[1750086757178,4.76464086,156.77,156.74,19.26101883]
[1750086757385,4.76464086,156.76,156.74,19.26101883]
[1750086757592,4.76464086,156.75,156.74,19.26101883]
[1750086757969,4.76464086,156.75,156.74,12.8811986]
[1750086758278,4.76464086,156.75,156.74,19.26119094]
[1750086759091,4.7631371,156.75,156.74,19.26119094]
[1750086759667,42.62841951,156.78,156.74,19.26119094]
[1750086759973,4.76282268,156.77,156.74,6.37999234]
[1750086760293,4.76282268,156.76,156.74,19.26119094]
[1750086760466,29.74722091,156.78,156.74,19.26119094]
[1750086760667,4.76416165,156.77,156.74,6.37999234]
[1750086760885,4.76416165,156.76,156.74,6.37999234]
[1750086761081,4.76416165,156.75,156.74,6.37999234]
[1750086761457,4.76416165,156.75,156.72,6.38080653]
[1750086761664,4.76332936,156.74,156.72,6.38080653]
[1750086761881,20.01999802,156.77,156.73,12.8811986]
[1750086762088,4.76341275,156.76,156.73,12.8811986]
[1750086762284,4.76341275,156.75,156.72,19.26200513]
[1750086762459,4.76341275,156.74,156.72,19.26200513]
[1750086762660,4.76249538,156.73,156.7,6.38147927]
[1750086762889,4.76222147,156.72,156.7,6.38147927]
[1750086763072,15.26287852,156.74,156.7,6.38147927]
[1750086763274,15.26287852,156.74,156.66,41.95734683]
[1750086763275,12.8811986,156.72,156.67,6.38284291]
[1750086763476,4.7623477,156.71,156.67,19.26404151]
[1750086763688,4.7623477,156.7,156.67,19.26404151]
[1750086763876,12.8811986,156.72,156.68,12.8811986]
[1750086764077,4.76113113,156.71,156.68,12.8811986]
[1750086764265,4.76113113,156.7,156.67,6.38284291]
[1750086764466,12.8811986,156.72,156.67,6.38284291]
[1750086764672,12.8811986,156.71,156.67,6.38284291]
[1750086764874,4.76113245,156.7,156.67,19.26404151]
[1750086765096,4.76113245,156.7,156.66,6.38309678]
[1750086765097,17.6426248,156.69,156.66,6.38309678]
[1750086765298,12.8811986,156.68,156.65,12.20349434]
[1750086765803,12.8811986,156.69,156.65,12.20349434]
[1750086766104,4.76098253,156.68,156.65,12.20349434]
[1750086766287,38.8811986,156.7,156.65,12.20349434]
[1750086766475,4.76100539,156.69,156.65,12.20349434]
[1750086766797,38.8811986,156.7,156.65,12.20349434]
[1750086767093,4.75949315,156.69,156.65,12.20349434]
[1750086767288,38.8811986,156.7,156.65,12.20349434]
[1750086767467,4.75928868,156.69,156.65,12.20349434]
[1750086767779,19.1754986,156.76,156.69,18.64964886]
[1750086767978,31.18027047,156.75,156.72,12.8811986]
[1750086768285,4.76027047,156.74,156.71,12.8811986]
[1750086768597,4.76027047,156.73,156.71,12.8811986]
[1750086768798,4.76027047,156.72,156.69,18.64964886]
[1750086768972,4.75477367,156.74,156.68,1.6536]
[1750086768973,4.75477367,156.74,156.71,12.8811986]
[1750086769177,4.75960335,156.73,156.71,19.26221491]
[1750086769494,4.75960335,156.72,156.71,19.26221491]
[1750086770174,31.15395257,156.75,156.71,19.26221491]
[1750086770369,4.75922244,156.74,156.71,19.26221491]
[1750086770570,52.42,156.76,156.73,12.8811986]
[1750086770787,4.75929917,156.75,156.74,12.8811986]
[1750086771189,4.75929917,156.75,156.74,19.26119094]
[1750086771703,4.75929917,156.75,156.74,6.37999234]
[1750086772001,4.75929917,156.75,156.73,19.26142986]
[1750086772201,4.75929917,156.74,156.73,19.26142986]
[1750086772776,4.75929917,156.74,156.73,12.8811986]
[1750086773086,4.75929917,156.74,156.73,19.26159801]
[1750086773297,4.76398191,156.74,156.73,19.26159801]
[1750086773691,4.76398191,156.74,156.73,12.8811986]
[1750086774378,4.76398191,156.74,156.72,12.8811986]
[1750086774580,4.76211765,156.76,156.73,12.8811986]
[1750086774795,4.76447768,156.75,156.73,12.8811986]
[1750086774995,4.76447768,156.74,156.73,12.8811986]
[1750086775293,4.76447768,156.74,156.72,12.8811986]
[1750086775495,4.76211765,156.76,156.72,19.261872]
[1750086775833,4.76401908,156.75,156.72,19.261872]
[1750086776013,4.76401908,156.74,156.72,19.261872]
[1750086776176,45.66001069,156.77,156.72,19.261872]
[1750086776376,9.52748283,156.76,156.72,19.261872]
[1750086776576,4.76392568,156.75,156.72,19.261872]
[1750086776794,4.76392568,156.74,156.72,19.261872]
[1750086777102,8.09085364,156.76,156.72,19.261872]
[1750086777287,4.76285733,156.75,156.72,12.8811986]
[1750086777490,4.76282831,156.74,156.72,12.8811986]
[1750086777690,8.09085364,156.76,156.72,12.8811986]
[1750086777899,4.76291801,156.75,156.72,12.8811986]
[1750086778109,4.76291801,156.74,156.72,12.8811986]
[1750086778285,8.08954758,156.76,156.72,19.26171229]
[1750086778486,4.76284582,156.75,156.72,19.26171229]
[1750086778705,4.76284582,156.74,156.72,19.26171229]
[1750086779015,8.08954758,156.76,156.72,19.26171229]
[1750086779193,4.76298142,156.75,156.72,19.26171229]
[1750086779505,4.76261712,156.74,156.71,6.3812137]
[1750086779689,8.08954758,156.76,156.72,12.8811986]
[1750086779892,4.762624,156.75,156.72,12.8811986]
[1750086780200,4.762624,156.74,156.73,12.8811986]
[1750086780408,3.32729649,156.76,156.73,12.8811986]
[1750086780574,3.32729649,156.76,156.75,12.8811986]
[1750086781599,3.32729649,156.76,156.75,19.26078392]
[1750086781983,3.32729649,156.76,156.75,39.57703278]
[1750086782193,27.48469128,156.8,156.77,0.14216157]
[1750086782494,12.03149253,156.84,156.77,0.14216157]
[1750086782692,7.14119561,156.83,156.79,12.8811986]
[1750086782900,4.76079708,156.82,156.81,12.8811986]
[1750086783099,23.39183438,156.84,156.81,12.8811986]
[1750086783289,23.39183438,156.84,156.82,12.8811986]
[1750086783501,23.39183438,156.84,156.81,12.8811986]
[1750086783697,23.39183438,156.84,156.81,6.37702006]
[1750086783906,23.39183438,156.84,156.82,12.8811986]
[1750086784916,23.39183438,156.84,156.83,12.8811986]
[1750086785391,23.39183438,156.84,156.82,12.8811986]
[1750086785594,23.39183438,156.84,156.82,19.25792886]
[1750086786176,23.39183438,156.84,156.82,12.8811986]
[1750086786606,23.39183438,156.84,156.8,6.37741687]
[1750086786810,23.39183438,156.84,156.81,12.8811986]
[1750086787213,23.39183438,156.84,156.82,12.8811986]
[1750086787429,23.39183438,156.84,156.83,12.8811986]
[1750086787597,23.39183438,156.84,156.82,12.8811986]
[1750086787932,23.39183438,156.84,156.83,12.8811986]
[1750086789027,23.39183438,156.84,156.83,19.25752965]
[1750086790535,14.68564285,156.84,156.83,19.25752965]
[1750086790690,11.36034185,156.84,156.83,37.90717851]
[1750086791911,11.36034185,156.84,156.83,19.25752965]
[1750086792902,11.36034185,156.84,156.83,6.37633105]
[1750086793202,11.36034185,156.84,156.83,37.90717851]
[1750086794002,11.36034185,156.84,156.82,6.37657353]
[1750086794203,11.36034185,156.84,156.82,12.8811986]
[1750086794720,11.36034185,156.84,156.82,19.25783581]
[1750086794930,11.36034185,156.84,156.82,14.91825475]
[1750086796138,11.36034185,156.84,156.83,8.54161754]
[1750086797236,11.36034185,156.84,156.83,27.1912664]
[1750086798210,11.36034185,156.84,156.83,6.37633105]
[1750086798546,11.36034185,156.84,156.82,8.54161754]
[1750086798704,11.36034185,156.84,156.81,14.91850529]
[1750086799432,11.36034185,156.84,156.82,8.54161754]
[1750086799647,11.36034185,156.84,156.83,8.54161754]
[1750086800234,11.36034185,156.84,156.83,14.91794859]
[1750086800444,3.32457912,156.86,156.83,14.91794859]
[1750086800729,26.38,156.94,156.87,0.14216157]
[1750086800941,3.32384826,156.91,156.9,12.79969217]
[1750086801106,26.38,156.94,156.9,12.79969217]
[1750086801302,12.79969217,156.95,156.91,12.79969217]
[1750086801534,16.12309357,156.93,156.89,12.79969217]
[1750086802172,16.12309357,156.93,156.88,12.79969217]
[1750086802322,16.12309357,156.93,156.85,1.6159]
[1750086802323,12.79969217,156.91,156.85,1.6159]